bitfinex-derivatives/quotes_ETHF0:USTF0_20240915
["timestamp","ask_amount","ask_price","bid_price","bid_amount"]
[1726435287565,9.15112164,2345.2,2345.0,2.08263]
[1726435287866,6.32902164,2345.3,2345.1,0.42631]
[1726435288059,2.19702164,2345.3,2345.1,0.42631]
[1726435288259,6.49433945,2345.4,2345.1,1.5942]
[1726435288260,5.51702164,2345.4,2345.1,1.5942]
[1726435288460,5.51702164,2345.4,2345.2,0.42629]
[1726435288969,5.51702164,2345.4,2345.1,1.5942]
[1726435288970,3.32,2345.4,2345.3,1.98307]
[1726435289260,3.32,2345.4,2345.3,1.5568]
[1726435289663,3.32,2345.4,2345.3,1.98307]
[1726435289867,5.40482164,2345.5,2345.4,0.42625]
[1726435290866,5.40482164,2345.5,2345.3,1.98306]
[1726435291264,5.40482164,2345.5,2345.4,0.42625]
[1726435291466,5.40482164,2345.5,2345.3,1.98306]
[1726435292363,5.40482164,2345.5,2345.4,0.42625]
[1726435292559,2.19861956,2345.6,2345.4,0.42624]
[1726435292769,2.19861956,2345.6,2345.5,1.609]
[1726435293168,4.2632,2345.6,2345.5,1.609]
[1726435293467,6.46181956,2345.6,2345.5,1.609]
[1726435293973,4.2632,2345.6,2345.5,1.609]
[1726435294175,9.15262956,2345.7,2345.5,1.609]
[1726435294677,9.15262956,2345.7,2345.5,2.03523]
[1726435294970,6.95401,2345.7,2345.5,2.03523]
[1726435295472,6.95401,2345.7,2345.5,2.03524]
[1726435295771,6.95401,2345.7,2345.5,1.609]
[1726435296165,6.95401,2345.7,2345.5,2.03523]
[1726435296769,6.95401,2345.7,2345.5,1.609]
[1726435296972,6.5278,2345.7,2345.5,2.03522]
[1726435297160,0.42622,2345.6,2345.5,1.609]
[1726435297364,6.95401,2345.7,2345.5,2.03524]
[1726435298369,0.42622,2345.6,2345.5,1.609]
[1726435298766,0.42622,2345.6,2345.5,2.03524]
[1726435299963,1.54,2345.6,2345.5,2.03524]
[1726435303768,1.96622,2345.6,2345.5,1.609]
[1726435304984,1.96622,2345.6,2345.5,2.03524]
[1726435305572,1.96622,2345.6,2345.5,1.609]
[1726435306187,1.96622,2345.6,2345.3,1.98306]
[1726435306188,0.42625,2345.5,2345.3,1.98306]
[1726435307069,0.42625,2345.5,2345.4,0.42625]
[1726435309682,0.42625,2345.5,2345.3,1.98306]
[1726435310576,0.42625,2345.5,2345.4,0.42625]
[1726435321391,0.42623,2345.6,2345.4,0.42625]
[1726435321582,0.42624,2345.5,2345.4,0.42625]
[1726435322188,0.42624,2345.5,2345.3,1.98306]
[1726435322889,0.42623,2345.6,2345.4,0.42625]
[1726435323783,0.34419583,2345.9,2345.8,0.42618]
[1726435324186,0.42618,2345.8,2345.7,3.2078]
[1726435324488,0.77036583,2345.9,2345.7,3.634]
[1726435324683,0.42617,2345.9,2345.7,5.3099]
[1726435325200,0.42617,2345.9,2345.8,0.42618]
[1726435325581,0.42617,2345.9,2345.7,4.8837]
[1726435325582,1.54,2345.9,2345.7,4.8837]
[1726435325782,2.60543,2345.9,2345.6,1.7107]
[1726435325986,0.4262,2345.7,2345.6,2.13691]
[1726435326692,3.2078,2346.0,2345.9,0.42616]
[1726435326994,0.42617,2345.9,2345.8,0.42617]
[1726435327596,0.42616,2345.9,2345.8,0.42617]
[1726435327900,0.42619,2345.8,2345.7,0.42619]
[1726435328101,0.42618,2345.9,2345.8,0.42618]
[1726435328392,4.7478,2346.0,2345.7,0.42619]
[1726435328393,0.42619,2345.8,2345.7,0.42619]
[1726435328597,0.42619,2345.8,2345.6,4.9185]
[1726435328598,0.42618,2345.9,2345.8,0.42618]
[1726435339196,0.42616,2346.0,2345.9,0.42616]
[1726435339600,0.42616,2346.0,2345.8,0.42617]
[1726435340106,0.42616,2346.0,2345.9,3.3084]
[1726435340807,3.08389488,2346.3,2346.1,0.42613]
[1726435341106,0.42611,2346.3,2346.2,1.6085]
[1726435341296,4.68851,2346.3,2346.2,1.6085]
[1726435342304,0.42611,2346.3,2346.2,1.6085]
[1726435342503,4.68851,2346.3,2346.2,1.6085]
[1726435342704,4.68851,2346.3,2346.2,2.03461]
[1726435343408,4.68851,2346.3,2346.2,1.6085]
[1726435344501,0.42611,2346.3,2346.2,1.6085]
[1726435345005,4.68851,2346.3,2346.2,1.6085]
[1726435345708,4.68851,2346.3,2346.2,2.03461]
[1726435346706,4.68851,2346.3,2346.2,1.6085]
[1726435347008,0.42611,2346.3,2346.2,1.6085]
[1726435348001,0.42611,2346.3,2346.2,2.03461]
[1726435348902,3.17414945,2346.4,2346.3,0.42609]
[1726435349099,3.17414945,2346.4,2346.3,2.13599]
[1726435349298,0.42608,2346.4,2346.3,3.83499]
[1726435350300,0.42607,2346.4,2346.3,3.83498]
[1726435351108,0.42607,2346.4,2346.3,1.699]
[1726435352511,0.42607,2346.4,2346.3,2.12509]
[1726435355597,4.28806945,2346.5,2346.3,2.12509]
[1726435355598,4.71413945,2346.5,2346.4,0.42607]
[1726435355801,0.42607,2346.4,2346.3,2.12508]
[1726435357306,0.42606,2346.5,2346.4,0.42606]
[1726435359005,1.54,2346.6,2346.3,2.12508]
[1726435359006,0.42607,2346.4,2346.3,2.12508]
[1726435359314,0.42607,2346.5,2346.4,0.42607]
[1726435360305,1.96605,2346.6,2346.5,0.42606]
[1726435361110,1.96605,2346.6,2346.3,1.699]
[1726435361111,1.96605,2346.6,2346.4,0.42606]
[1726435361306,1.54,2346.6,2346.4,0.42606]
[1726435361514,1.96605,2346.6,2346.5,0.42606]
[1726435362106,0.42605,2346.6,2346.5,0.42606]
[1726435362310,0.42603,2346.7,2346.5,0.42606]
[1726435362508,0.42603,2346.7,2346.6,1.7091]
[1726435362911,0.42603,2346.7,2346.6,2.13514]
[1726435363104,2.74806945,2347.0,2346.6,3.2491]
[1726435363303,0.42597,2347.0,2346.7,3.2704]
[1726435363509,1.6488,2347.2,2346.7,3.2704]
[1726435363510,2.74806945,2347.1,2346.7,3.2704]
[1726435363815,3.17402945,2347.1,2346.9,0.42598]
[1726435364208,0.42596,2347.1,2346.9,0.42598]
[1726435364513,0.42596,2347.1,2347.0,1.645]
[1726435364708,4.68676,2347.1,2347.0,1.645]
[1726435367214,0.42598,2346.9,2346.8,0.42599]
[1726435367516,0.42598,2346.9,2346.7,3.2704]
[1726435367517,0.426,2346.8,2346.7,1.6176]
[1726435368217,2.0447,2346.8,2346.7,1.6176]
[1726435372509,2.0447,2346.8,2346.6,2.10263]
[1726435372510,1.49107,2346.7,2346.6,1.6766]
[1726435372706,0.42606,2346.5,2346.3,3.63388]
[1726435372908,0.42607,2346.4,2346.3,0.42608]
[1726435373121,0.42607,2346.5,2346.3,0.42608]
[1726435373414,4.27285,2346.7,2346.3,0.42608]
[1726435373719,0.42607,2346.5,2346.3,0.42608]
[1726435374320,0.42607,2346.4,2346.3,0.42608]
[1726435375417,1.06505,2346.7,2346.3,0.42608]
[1726435375418,0.42607,2346.5,2346.3,0.42608]
[1726435377613,0.42607,2346.4,2346.3,0.42608]
[1726435377813,0.42607,2346.5,2346.3,0.42608]
[1726435379316,1.6332,2346.6,2346.0,3.63393]
[1726435379317,4.23833,2346.6,2346.0,3.63393]
[1726435379621,0.42611,2346.2,2346.1,1.6708]
[1726435381717,0.42611,2346.2,2346.1,2.09693]
[1726435382220,2.08161,2346.3,2346.1,2.09693]
[1726435382525,0.42611,2346.2,2346.1,2.09693]
[1726435383419,1.6555,2346.3,2346.1,2.09693]
[1726435383420,1.6555,2346.3,2346.1,1.6708]
[1726435383613,0.42611,2346.2,2346.1,2.09692]
[1726435385519,1.6555,2346.3,2346.2,0.42611]
[1726435385520,2.0816,2346.3,2346.2,0.42611]
[1726435386120,0.42611,2346.2,2346.1,2.09692]
[1726435386720,0.42611,2346.2,2346.1,1.6708]
[1726435387717,0.42611,2346.2,2346.1,2.09693]
[1726435389632,0.42611,2346.2,2346.1,1.6708]
[1726435390727,0.42611,2346.2,2346.1,2.09693]
[1726435392038,0.42611,2346.2,2346.1,1.6708]
[1726435392331,1.49139,2346.2,2346.1,1.6708]
[1726435393229,0.42611,2346.2,2346.1,1.6708]
[1726435396645,1.49146,2346.1,2346.0,3.2078]
[1726435401240,0.42615,2346.0,2345.9,2.06526]
[1726435402644,0.42615,2346.0,2345.9,1.6391]
[1726435402839,0.42615,2346.0,2345.9,2.06526]
[1726435409551,0.42615,2346.0,2345.7,3.4165]
[1726435409552,1.49164,2345.8,2345.7,3.4165]
[1726435409743,3.03164,2345.8,2345.7,1.7051]
[1726435410057,0.42622,2345.6,2345.5,1.7162]
[1726435410447,0.42622,2345.6,2345.5,2.14244]
[1726435410943,0.42622,2345.6,2345.5,1.7162]
[1726435411544,0.42622,2345.6,2345.5,2.14244]
[1726435411946,0.42622,2345.6,2345.5,1.7162]
[1726435414253,0.42624,2345.5,2345.4,6.4759]
[1726435414643,0.42624,2345.5,2345.4,3.2078]
[1726435414844,2.00804,2345.5,2345.4,3.2078]
[1726435415554,12.3296,2345.5,2344.8,1.11916003]
[1726435415753,12.3296,2345.5,2344.7,1.67874004]
[1726435415754,0.42636,2344.8,2344.7,1.7011]
[1726435416052,3.03228,2344.8,2344.7,1.7011]
[1726435416251,0.4264,2344.6,2344.5,6.5133]
[1726435416641,0.42644,2344.4,2344.3,1.7011]
[1726435416851,3.03254,2344.4,2344.3,1.7011]
[1726435417242,0.42652,2344.0,2343.7,5.17435]
[1726435417451,0.4265,2344.1,2343.9,1.7011]
[1726435417758,1.54,2344.2,2343.9,1.7011]
[1726435417953,1.54,2344.2,2343.7,5.17436]
[1726435417954,0.42654,2343.9,2343.7,3.2078]
[1726435418144,0.42654,2343.9,2343.7,6.6097]
[1726435419251,0.42655,2343.8,2343.7,3.4019]
[1726435419755,0.42655,2343.8,2343.7,1.6661]
[1726435419958,0.42655,2343.8,2342.9,3.2078]
[1726435419959,0.42659,2343.6,2343.3,2.09274]
[1726435420251,5.81415,2343.9,2343.3,2.09274]
[1726435420252,1.54,2343.7,2343.3,1.6661]
[1726435420448,0.42661,2343.5,2343.3,1.6661]
[1726435420956,0.42662,2343.4,2343.3,1.6661]
[1726435421443,2.60644,2343.7,2343.3,1.6661]
[1726435421645,0.42661,2343.5,2343.3,1.6661]
[1726435422850,0.42662,2343.4,2343.3,1.6661]
[1726435423051,0.42661,2343.5,2343.3,1.6661]
[1726435423251,0.42662,2343.4,2343.3,1.6661]
[1726435423450,0.42661,2343.5,2343.3,1.6661]
[1726435423756,0.42662,2343.4,2343.3,1.6661]
[1726435423947,0.42661,2343.5,2343.3,1.6661]
[1726435424350,0.42659,2343.6,2343.3,1.6661]
[1726435424550,0.4266,2343.5,2343.3,1.6661]
[1726435426153,4.2672,2343.4,2343.2,0.42665]
[1726435426356,4.60619196,2343.9,2342.8,4.7995]
[1726435426357,3.33,2343.6,2342.8,4.7995]
[1726435426554,0.42663,2343.4,2342.8,4.7995]
[1726435427159,0.42663,2343.4,2343.1,0.42667]
[1726435427363,3.33,2343.6,2343.1,0.42667]
[1726435427364,0.42661,2343.5,2343.1,0.42667]
[1726435427565,0.42661,2343.5,2343.2,1.6803]
[1726435428057,0.42662,2343.4,2343.2,1.6803]
[1726435428257,3.33,2343.6,2342.8,4.7995]
[1726435428258,0.42664,2343.3,2342.8,3.2078]
[1726435428457,0.42664,2343.3,2343.0,0.42668]
[1726435428756,0.42664,2343.3,2342.5,3.63457]
[1726435428757,0.42673,2342.8,2342.5,3.63457]
[1726435428957,0.42673,2342.8,2342.6,1.6227]
[1726435429160,0.42675,2342.7,2342.6,1.6227]
[1726435429857,0.42676,2342.6,2342.5,3.2078]
[1726435430254,4.69556,2342.6,2342.5,3.2078]
[1726435430456,7.90336,2342.6,2342.3,1.6199]
[1726435430757,0.42679,2342.5,2342.3,1.6199]
[1726435431265,4.2688,2342.4,2341.4,3.2078]
[1726435431567,3.75684,2342.2,2341.8,0.4269]
[1726435431858,0.42688,2342.0,2341.6,3.73384]
[1726435432163,4.2749,2342.3,2341.6,3.73384]
[1726435432353,0.42691,2341.8,2341.6,3.3069]
[1726435432554,3.33,2342.1,2341.6,3.3069]
[1726435432754,0.42689,2342.0,2341.7,0.42693]
[1726435433060,0.42689,2342.0,2341.7,0.42692]
[1726435433262,6.5378,2342.3,2341.6,3.3069]
[1726435433559,3.75683,2342.3,2341.8,3.2078]
[1726435433765,0.42684,2342.2,2341.8,3.6347]
[1726435433951,3.33,2342.1,2341.6,3.3069]
[1726435434453,0.4269,2341.9,2341.6,3.3069]
[1726435434767,0.42692,2341.8,2341.6,1.6199]
[1726435434959,0.42693,2341.7,2341.6,1.6199]
[1726435435751,0.42692,2341.8,2341.6,1.6199]
[1726435436056,0.42693,2341.7,2341.6,1.6199]
[1726435436853,0.42692,2341.8,2341.6,1.6199]
[1726435437369,3.2078,2342.0,2341.6,1.6199]
[1726435437559,0.4269,2341.9,2341.6,1.6199]
[1726435437868,3.63469,2342.0,2341.6,1.6199]
[1726435438171,3.2078,2342.0,2341.6,1.6199]
[1726435438468,3.2078,2342.0,2341.6,2.04684]
[1726435438469,3.63469,2342.0,2341.6,2.04684]
[1726435438660,3.63469,2342.0,2341.7,0.42692]
[1726435439767,3.63469,2342.0,2341.6,2.04683]
[1726435440465,3.63469,2342.0,2341.7,1.5791]
[1726435440970,3.63469,2342.0,2341.7,2.00603]
[1726435441668,3.63469,2342.0,2341.7,1.5791]
[1726435442160,3.2078,2342.0,2341.7,1.5791]
[1726435442355,0.42683,2342.3,2341.9,0.42688]
[1726435442564,0.42683,2342.3,2341.9,0.42689]
[1726435442761,0.42683,2342.3,2342.0,0.42687]
[1726435442962,3.33,2342.4,2341.9,0.42689]
[1726435443261,5.95325,2342.6,2341.9,0.42689]
[1726435443458,3.75683,2342.3,2341.9,0.42689]
[1726435445064,3.75683,2342.3,2342.0,0.42687]
[1726435445271,3.75683,2342.3,2341.9,0.42688]
[1726435446663,3.33,2342.5,2341.8,9.78012198]
[1726435446873,3.33,2342.5,2342.3,0.42682]
[1726435447058,3.33,2342.5,2342.2,0.42682]
[1726435447059,3.75678,2342.5,2342.2,0.42682]
[1726435447263,3.75678,2342.5,2342.3,3.3218]
[1726435447466,3.33,2342.5,2342.3,3.3218]
[1726435448465,3.33,2342.5,2342.3,3.74861]
[1726435448765,3.33,2342.5,2342.4,0.4268]
[1726435449166,3.2078,2342.6,2342.3,3.3218]
[1726435449366,3.2078,2342.6,2342.3,3.7486]
[1726435449566,3.2078,2342.6,2342.4,0.4268]
[1726435450166,3.2078,2342.6,2342.3,3.74861]
[1726435450663,3.2078,2342.6,2342.4,0.4268]
[1726435451371,3.2078,2342.6,2342.3,3.74861]
[1726435451675,3.2078,2342.6,2342.4,0.4268]
[1726435452264,3.2078,2342.6,2342.3,3.74861]
[1726435452775,3.2078,2342.6,2342.4,0.4268]
[1726435452979,3.2078,2342.6,2342.3,3.74861]
[1726435453163,3.2078,2342.6,2342.4,0.4268]
[1726435454571,3.2078,2342.6,2342.4,2.13759]
[1726435454965,3.2078,2342.6,2342.4,1.7108]
[1726435455169,6.5378,2342.6,2342.4,1.7108]
[1726435456573,1.4001496,2343.0,2342.6,0.42675]
[1726435456574,3.7567,2343.0,2342.6,0.42675]
[1726435456972,0.4267,2343.0,2342.6,0.42675]
[1726435457367,3.7567,2343.0,2342.6,0.42675]
[1726435458978,3.7567,2343.0,2342.4,4.9186]
[1726435459272,3.7567,2343.0,2342.6,0.42675]
[1726435460072,3.7567,2343.0,2342.7,0.42674]
[1726435460073,3.33,2343.0,2342.7,0.42674]
[1726435460273,3.33,2343.0,2342.8,3.79812]
[1726435460473,3.33,2343.0,2342.8,3.3714]
[1726435460777,3.7567,2343.0,2342.8,3.3714]
[1726435461480,3.7567,2343.0,2342.8,1.6465]
[1726435464674,3.33,2343.0,2342.8,2.07322]
[1726435464877,3.7567,2343.0,2342.8,1.6465]
[1726435466086,3.33,2343.0,2342.8,1.6465]
[1726435466287,3.7567,2343.0,2342.8,1.6465]
[1726435467478,1.06689,2342.7,2342.1,3.2078]
[1726435467679,5.33478,2342.9,2341.3,0.4272]
[1726435467680,0.4269,2341.9,2341.4,2.10337]
[1726435467974,6.5378,2341.8,2341.4,1.6764]
[1726435468178,3.2078,2341.5,2340.9,3.63487]
[1726435468391,3.33,2341.2,2340.9,3.2078]
[1726435468890,3.75703,2341.2,2340.9,3.2078]
[1726435470289,1.06745,2341.5,2340.6,1.6764]
[1726435470290,0.42708,2340.9,2340.6,1.6764]
[1726435470481,0.42708,2340.9,2340.3,0.42717]
[1726435470684,0.42708,2340.9,2340.4,0.42716]
[1726435470884,0.42708,2340.9,2340.3,0.42717]
[1726435471086,0.42708,2340.9,2340.4,0.42716]
[1726435471993,3.33,2340.5,2339.8,1.11916003]
[1726435472291,3.2078,2340.3,2340.0,0.42723]
[1726435472487,6.5378,2340.3,2340.0,0.42723]
[1726435473191,6.5378,2340.3,2339.7,4.8328]
[1726435473381,1.06783,2340.6,2339.7,1.625]
[1726435473382,3.2078,2340.0,2339.7,1.625]
[1726435473588,3.2078,2340.0,2339.8,0.42727]
[1726435473782,3.2078,2340.0,2339.8,0.42728]
[1726435474488,3.2078,2340.0,2339.9,0.42726]
[1726435474687,3.75716,2340.5,2339.9,4.65166546]
[1726435474887,3.2078,2340.3,2340.1,0.42722]
[1726435475584,3.2078,2340.3,2339.7,4.8328]
[1726435475983,3.2078,2340.3,2340.2,0.4272]
[1726435476294,3.33,2340.5,2339.7,1.625]
[1726435476295,3.2078,2340.5,2339.7,1.625]
[1726435476482,3.2078,2340.2,2339.7,1.625]
[1726435476690,3.33,2340.3,2339.9,0.42725]
[1726435476988,3.75719,2340.3,2339.9,0.42725]
[1726435477287,3.33,2340.3,2339.9,0.42725]
[1726435477594,3.75718,2340.3,2339.9,0.42725]
[1726435478787,3.33,2340.3,2339.7,3.2078]
[1726435478996,3.75725,2340.0,2339.6,0.4273]
[1726435479294,3.33,2340.0,2339.7,0.42729]
[1726435479491,3.33,2340.0,2339.8,0.42727]
[1726435480593,3.33,2340.0,2339.9,0.42726]
[1726435480888,6.5378,2340.2,2339.9,0.42726]
[1726435481393,6.96501,2340.2,2339.9,0.42726]
[1726435481987,0.42722,2340.1,2339.8,0.42727]
[1726435482793,6.96501,2340.2,2339.9,0.42725]
[1726435485088,6.96502,2340.2,2339.9,0.42725]
[1726435485799,0.42722,2340.1,2339.8,0.42727]
[1726435486396,6.5378,2340.2,2339.6,3.2078]
[1726435486695,6.5378,2340.2,2340.0,0.42722]
[1726435486997,6.5378,2340.2,2340.0,0.42723]
[1726435487496,6.5378,2340.2,2340.1,0.42722]
[1726435488598,6.5378,2340.2,2340.0,0.42723]
[1726435488902,6.5378,2340.2,2340.1,0.42722]
[1726435489896,3.33,2340.4,2340.1,0.42722]
[1726435490098,7.5538,2340.8,2340.7,0.42711]
[1726435490302,3.2078,2340.8,2340.7,0.42711]
[1726435490900,6.5378,2340.9,2340.8,0.42709]
[1726435491098,6.5378,2340.9,2340.6,3.2078]
[1726435491099,6.96489,2340.9,2340.6,3.2078]
[1726435491398,3.33,2340.7,2340.6,0.42712]
[1726435491700,3.75713,2340.7,2340.4,2.14255]
[1726435491900,3.2078,2340.6,2340.4,2.14255]
[1726435492094,3.2078,2340.6,2340.5,0.42715]
[1726435492998,3.33,2340.7,2340.6,0.42713]
[1726435496096,3.63488,2340.9,2340.8,0.42709]
[1726435496097,3.2078,2340.9,2340.8,0.42709]
[1726435496600,3.2078,2340.9,2340.8,4.69909]
[1726435496800,3.2078,2340.9,2340.8,0.42709]
[1726435500204,3.2481,2341.4,2340.6,1.06781]
[1726435500205,0.42704,2341.2,2340.6,1.06781]
[1726435500404,3.33,2341.1,2341.0,0.42706]
[1726435500597,4.132,2341.5,2341.4,0.42698]
[1726435500797,1.06727,2341.9,2341.1,1.0676]
[1726435500798,3.33,2341.7,2341.1,1.0676]
[1726435500997,3.33,2341.7,2341.6,0.42695]
[1726435501207,3.2078,2341.9,2341.8,0.42691]
[1726435501518,3.75686,2342.1,2341.9,0.42688]
[1726435501805,3.75686,2342.1,2341.3,0.42699]
[1726435501806,0.42696,2341.6,2341.3,0.42699]
[1726435502000,0.42697,2341.5,2341.3,0.42699]
[1726435502195,3.33,2341.6,2341.4,0.42698]
[1726435502402,3.33,2341.6,2341.2,3.2668]
[1726435502598,3.33,2341.6,2341.5,0.42696]
[1726435502800,1.7172,2341.8,2341.6,0.42695]
[1726435503000,3.2078,2342.0,2341.6,0.42693]
[1726435503001,0.4269,2341.9,2341.6,0.42693]
[1726435503407,6.5378,2342.0,2341.6,0.42693]
[1726435503603,3.2078,2342.0,2341.3,3.2078]
[1726435503908,0.42692,2341.8,2341.5,0.42696]
[1726435504110,3.7569,2341.9,2341.6,0.42694]
[1726435504407,0.42692,2341.8,2341.5,0.42695]
[1726435504817,0.42692,2341.8,2341.6,0.42694]
[1726435505508,3.75691,2341.9,2341.6,0.42694]
[1726435505709,0.42691,2341.8,2341.6,0.42694]
[1726435509008,0.42699,2341.4,2341.2,3.69381]
[1726435509205,0.427,2341.3,2341.2,1.6701]
[1726435510804,3.33,2341.3,2340.9,0.42707]
[1726435511007,0.42706,2341.0,2340.8,2.13058]
[1726435512820,3.33,2341.5,2340.8,1.7035]
[1726435513115,0.427,2341.4,2341.2,0.42701]
[1726435513314,0.427,2341.4,2341.3,1.637]
[1726435513514,0.42698,2341.4,2341.3,1.637]
[1726435513818,3.33,2341.5,2341.3,2.064]
[1726435513819,3.75697,2341.5,2341.3,2.064]
[1726435514319,3.33,2341.5,2341.3,2.064]
[1726435514527,3.63475,2341.6,2341.4,0.42698]
[1726435514710,3.2078,2341.6,2341.4,0.42698]
[1726435515019,3.2078,2341.6,2341.5,0.42696]
[1726435519327,3.75692,2341.8,2341.6,0.42694]
[1726435521021,0.42692,2341.8,2341.6,0.42694]
[1726435521324,3.33,2341.9,2341.3,1.637]
[1726435521325,3.7569,2341.9,2341.3,1.637]
[1726435521515,3.33,2341.9,2341.3,1.637]
[1726435522220,3.63471,2341.8,2341.6,0.42693]
[1726435524922,3.2078,2341.8,2341.7,0.42693]
[1726435525120,3.2078,2341.8,2341.3,1.637]
[1726435525121,3.2078,2341.8,2341.6,0.42693]
[1726435525621,3.2078,2341.8,2341.3,1.637]
[1726435525821,3.63471,2341.8,2341.6,0.42694]
[1726435526919,3.2078,2341.8,2341.7,0.42693]
[1726435527225,0.4269,2341.9,2341.7,0.42692]
[1726435527526,0.4269,2341.9,2341.8,1.594]
[1726435529923,3.33,2342.0,2341.8,2.02091]
[1726435530121,3.75688,2342.0,2341.8,2.02091]
[1726435530923,0.42689,2341.9,2341.8,2.02091]
[1726435531128,3.75689,2342.0,2341.8,2.02091]
[1726435531321,3.33,2342.0,2341.8,2.02091]
[1726435531517,3.75689,2342.0,2341.8,2.02091]
[1726435531919,0.42689,2341.9,2341.8,1.594]
[1726435533431,3.75689,2342.0,2341.8,2.0209]
[1726435533731,3.33,2342.0,2341.9,0.42689]
[1726435535922,0.42686,2342.1,2341.9,0.42689]
[1726435537016,0.42686,2342.1,2341.9,0.42688]
[1726435537221,0.42686,2342.1,2342.0,0.42687]
[1726435537534,0.42686,2342.1,2341.9,0.42688]
[1726435537722,6.5378,2342.2,2341.8,1.594]
[1726435537723,3.2078,2342.2,2341.8,1.594]
[1726435538034,0.42686,2342.1,2341.9,0.42688]
[1726435538218,0.42687,2342.0,2341.8,2.0209]
[1726435538426,0.42686,2342.1,2341.9,0.42689]
[1726435539132,3.63466,2342.1,2341.9,0.42689]
[1726435542132,3.2078,2342.1,2341.8,1.594]
[1726435542322,0.42688,2342.0,2341.8,2.02091]
[1726435543127,3.33,2342.0,2341.7,0.42692]
[1726435543328,0.42695,2341.6,2341.5,2.00226]
[1726435543535,6.5378,2341.8,2341.5,2.00226]
[1726435543827,6.5378,2341.8,2341.3,1.6922]
[1726435543828,3.33,2341.6,2341.2,1.5689]
[1726435544033,0.427,2341.4,2341.2,0.42701]
[1726435544230,0.427,2341.3,2341.1,1.5753]
[1726435544638,3.2078,2341.5,2341.2,0.42701]
[1726435544639,0.42698,2341.4,2341.2,0.42701]
[1726435544831,3.2078,2341.5,2341.2,0.42701]
[1726435545030,0.42702,2341.2,2341.1,1.5753]
[1726435545641,0.42701,2341.3,2341.1,2.00233]
[1726435546433,0.42702,2341.2,2340.9,1.5689]
[1726435546845,0.42702,2341.2,2341.0,0.42706]
[1726435547331,0.42705,2341.1,2340.9,1.99596]
[1726435547532,3.2078,2341.2,2340.9,1.5689]
[1726435547533,0.42706,2341.0,2340.9,1.5689]
[1726435547738,7.43917,2341.2,2340.8,2.06478]
[1726435548130,0.42707,2340.9,2340.8,2.06478]
[1726435548529,10.76917,2341.2,2340.5,2.77636003]
[1726435548530,0.4271,2340.8,2340.5,2.77636003]
[1726435548726,0.4271,2340.8,2340.5,4.43096003]
[1726435548927,0.4271,2340.8,2340.6,0.42712]
[1726435549136,0.4271,2340.8,2340.7,0.42711]
[1726435549333,0.42711,2340.7,2340.6,0.42712]
[1726435549537,4.27551,2340.9,2340.5,3.3118]
[1726435549729,3.63493,2340.6,2340.5,3.3118]
[1726435549932,0.42715,2340.5,2340.3,1.98078]
[1726435550134,0.42717,2340.4,2340.3,1.6546]
[1726435550435,3.2078,2340.6,2340.3,1.6546]
[1726435550436,0.42716,2340.5,2340.3,1.6546]
[1726435550638,0.42717,2340.4,2340.3,1.6546]
[1726435551339,0.42716,2340.5,2340.3,1.6546]
[1726435551531,9.7865,2340.6,2340.3,1.6546]
[1726435551532,0.42717,2340.4,2340.3,1.6546]
[1726435552545,0.42717,2340.5,2340.3,1.6546]
[1726435552739,6.96494,2340.6,2340.3,1.6546]
[1726435552936,3.75714,2340.6,2340.4,0.42716]
[1726435553443,3.75713,2340.6,2340.4,0.42716]
[1726435553644,3.75715,2340.6,2340.3,2.08177]
[1726435553842,3.75714,2340.6,2340.3,2.08177]
[1726435554233,3.33,2340.6,2340.4,0.42716]
[1726435554738,3.75713,2340.6,2340.4,0.42716]
[1726435555339,3.75713,2340.6,2340.3,2.08177]
[1726435555643,3.75713,2340.6,2340.3,1.6546]
[1726435556139,3.75713,2340.6,2340.4,0.42716]
[1726435557443,3.33,2340.6,2340.3,1.6546]
[1726435557650,3.33,2340.6,2340.5,0.42715]
[1726435560439,3.63492,2340.7,2340.5,0.42715]
[1726435561344,3.2078,2340.7,2340.5,0.42715]
[1726435561535,3.63491,2340.7,2340.5,0.42715]
[1726435561738,3.2078,2340.7,2340.4,1.601]
[1726435561941,3.2078,2340.7,2340.6,0.42713]
[1726435562540,0.4271,2340.8,2340.6,0.42713]
[1726435563443,3.33,2340.9,2340.6,0.42713]
[1726435563444,0.42698,2341.5,2341.2,0.42702]
[1726435563637,6.5378,2341.5,2340.7,10.463167]
[1726435563844,6.5378,2341.5,2340.8,2.67602]
[1726435564049,0.42699,2341.4,2341.2,0.42701]
[1726435564443,0.427,2341.3,2341.1,0.42703]
[1726435564653,6.5378,2341.5,2341.2,0.42701]
[1726435564849,0.42698,2341.4,2341.2,0.42701]
[1726435565154,6.5378,2341.5,2341.2,0.42701]
[1726435565352,0.42698,2341.4,2341.2,0.42701]
[1726435565552,0.427,2341.3,2341.2,0.42701]
[1726435565741,0.42699,2341.4,2341.2,0.427]
[1726435566545,6.5378,2341.5,2341.3,0.427]
[1726435566741,6.5378,2341.5,2341.2,0.42701]
[1726435566742,0.427,2341.4,2341.2,0.42701]
[1726435569564,6.5378,2341.5,2341.3,0.42699]
[1726435569952,0.42699,2341.4,2341.2,0.42701]
[1726435571862,0.42699,2341.4,2341.1,1.708]
[1726435572058,0.42699,2341.4,2341.2,0.42702]
[1726435572255,6.5378,2341.5,2341.4,0.42698]